[Event "Titled Tuesday Blitz April 18 Early 2023"]
[White "Manukyan, Sargis A."]
[Black "micke12a"]
[WhiteFideId "13303970"]
[WhiteElo "2187"]
[BlackElo "2329"]
[Result "1-0"]
[Round "02"]
[TimeControl "180+2"]
[Date "2023.04.18"]
[WhiteClock "0:00:49"]
[BlackClock "0:00:15"]

1. d4 {[%clk 0:03:00]}  d5 {[%clk 0:02:58]} 2. c4 {[%clk 0:03:01]}  c6 {[%clk 0:02:58]} 3. Nc3 {[%clk 0:03:02]}  Nf6 {[%clk 0:02:58]} 4. e3 {[%clk 0:03:02]}  e6 {[%clk 0:02:57]} 5. Nf3 {[%clk 0:03:03]}  Nbd7 {[%clk 0:02:57]} 6. Bd3 {[%clk 0:03:03]}  Bd6 {[%clk 0:02:57]} 7. O-O {[%clk 0:03:03]}  dxc4 {[%clk 0:02:57]} 8. Bxc4 {[%clk 0:03:03]}  b5 {[%clk 0:02:57]} 9. Bd3 {[%clk 0:03:03]}  Bb7 {[%clk 0:02:58]} 10. e4 {[%clk 0:03:03]}  e5 {[%clk 0:02:58]} 11. d5 {[%clk 0:02:57]}  b4 {[%clk 0:02:37]} 12. dxc6 {[%clk 0:02:55]}  Bxc6 {[%clk 0:02:38]} 13. Bb5 {[%clk 0:02:44]}  Qc7 {[%clk 0:02:19]} 14. Bxc6 {[%clk 0:02:29]}  Qxc6 {[%clk 0:02:20]} 15. Nd5 {[%clk 0:01:57]}  O-O {[%clk 0:02:07]} 16. Re1 {[%clk 0:01:36]}  Rfe8 {[%clk 0:01:51]} 17. Bg5 {[%clk 0:01:31]}  Nxd5 {[%clk 0:01:48]} 18. exd5 {[%clk 0:01:27]}  Qb5 {[%clk 0:01:46]} 19. Rc1 {[%clk 0:01:26]}  Rac8 {[%clk 0:01:34]} 20. Qb3 {[%clk 0:01:12]}  f6 {[%clk 0:01:27]} 21. Be3 {[%clk 0:01:12]}  Nc5 {[%clk 0:01:23]} 22. Bxc5 {[%clk 0:01:12]}  Rxc5 {[%clk 0:01:22]} 23. Rxc5 {[%clk 0:01:02]}  Qxc5 {[%clk 0:01:22]} 24. Nd2 {[%clk 0:01:03]}  Rc8 {[%clk 0:01:02]} 25. Ne4 {[%clk 0:00:59]}  Qb6 {[%clk 0:01:02]} 26. g4 {[%clk 0:00:51]}  Kf7 {[%clk 0:00:46]} 27. Kg2 {[%clk 0:00:51]}  Ke7 {[%clk 0:00:41]} 28. Qh3 {[%clk 0:00:50]}  h6 {[%clk 0:00:39]} 29. g5 {[%clk 0:00:51]}  f5 {[%clk 0:00:17]} 30. Qxf5 {[%clk 0:00:50]}  Rd8 {[%clk 0:00:15]} 31. Qe6+ {[%clk 0:00:48]}  Kf8 {[%clk 0:00:15]} 32. Re3 {[%clk 0:00:49]} 1-0


[Site "https://www.chess.com"]

[Event "Titled Tuesday Blitz April 18 Early 2023"]
[White "Chor, Kevin"]
[Black "Sandoval Mercado, Carlos"]
[WhiteFideId "2090740"]
[BlackFideId "5109434"]
[WhiteElo "2706"]
[BlackElo "2257"]
[Result "0-1"]
[Round "02"]
[TimeControl "180+2"]
[Date "2023.04.18"]
[WhiteClock "0:00:07"]
[BlackClock "0:00:21"]

1. e4 {[%clk 0:02:59]}  e5 {[%clk 0:02:57]} 2. Nf3 {[%clk 0:02:59]}  Nc6 {[%clk 0:02:58]} 3. Bb5 {[%clk 0:02:59]}  a6 {[%clk 0:02:59]} 4. Ba4 {[%clk 0:02:58]}  Nf6 {[%clk 0:02:59]} 5. O-O {[%clk 0:02:57]}  b5 {[%clk 0:02:51]} 6. Bb3 {[%clk 0:02:57]}  Bc5 {[%clk 0:02:52]} 7. d3 {[%clk 0:02:39]}  O-O {[%clk 0:02:47]} 8. Nc3 {[%clk 0:02:34]}  h6 {[%clk 0:02:43]} 9. a4 {[%clk 0:02:30]}  b4 {[%clk 0:02:42]} 10. Nd5 {[%clk 0:02:30]}  Rb8 {[%clk 0:02:33]} 11. Be3 {[%clk 0:02:15]}  Bxe3 {[%clk 0:02:26]} 12. fxe3 {[%clk 0:02:16]}  Nxd5 {[%clk 0:01:38]} 13. Bxd5 {[%clk 0:02:00]}  Qe7 {[%clk 0:01:34]} 14. Qe1 {[%clk 0:01:57]}  Nd8 {[%clk 0:01:34]} 15. Nh4 {[%clk 0:01:41]}  d6 {[%clk 0:01:34]} 16. Ng6 {[%clk 0:01:39]}  Qe8 {[%clk 0:01:35]} 17. Qg3 {[%clk 0:01:26]}  Be6 {[%clk 0:01:26]} 18. Nxf8 {[%clk 0:01:26]}  Qxf8 {[%clk 0:01:27]} 19. a5 {[%clk 0:01:20]}  c6 {[%clk 0:01:25]} 20. Bxe6 {[%clk 0:01:17]}  Nxe6 {[%clk 0:01:26]} 21. Rf5 {[%clk 0:01:14]}  Qd8 {[%clk 0:01:20]} 22. Raf1 {[%clk 0:01:14]}  Rb7 {[%clk 0:01:21]} 23. Qf2 {[%clk 0:01:02]}  f6 {[%clk 0:01:12]} 24. d4 {[%clk 0:01:01]}  Qxa5 {[%clk 0:01:10]} 25. Qd2 {[%clk 0:00:40]}  Qb6 {[%clk 0:00:59]} 26. c3 {[%clk 0:00:36]}  a5 {[%clk 0:00:59]} 27. h3 {[%clk 0:00:32]}  Kh7 {[%clk 0:00:54]} 28. Kh2 {[%clk 0:00:29]}  Ng5 {[%clk 0:00:50]} 29. Qd3 {[%clk 0:00:25]}  Qb5 {[%clk 0:00:50]} 30. c4 {[%clk 0:00:25]}  Qb6 {[%clk 0:00:50]} 31. c5 {[%clk 0:00:24]}  Qc7 {[%clk 0:00:34]} 32. d5 {[%clk 0:00:19]}  dxc5 {[%clk 0:00:30]} 33. d6 {[%clk 0:00:18]}  Qd7 {[%clk 0:00:31]} 34. Rd1 {[%clk 0:00:19]}  Ne6 {[%clk 0:00:31]} 35. Qc4 {[%clk 0:00:17]}  a4 {[%clk 0:00:30]} 36. Rf2 {[%clk 0:00:14]}  Ra7 {[%clk 0:00:25]} 37. Rfd2 {[%clk 0:00:12]}  Kg8 {[%clk 0:00:26]} 38. g4 {[%clk 0:00:10]}  Kf7 {[%clk 0:00:26]} 39. Rf2 {[%clk 0:00:09]}  Ke8 {[%clk 0:00:27]} 40. h4 {[%clk 0:00:09]}  Kd8 {[%clk 0:00:24]} 41. g5 {[%clk 0:00:10]}  hxg5 {[%clk 0:00:21]} 42. hxg5 {[%clk 0:00:10]}  Nxg5 {[%clk 0:00:22]} 43. Qg8+ {[%clk 0:00:10]}  Qe8 {[%clk 0:00:22]} 44. Qxe8+ {[%clk 0:00:05]}  Kxe8 {[%clk 0:00:23]} 45. Rfd2 {[%clk 0:00:06]}  Rd7 {[%clk 0:00:23]} 46. Rg2 {[%clk 0:00:06]}  Nxe4 {[%clk 0:00:23]} 47. Rg4 {[%clk 0:00:06]}  Nxd6 {[%clk 0:00:22]} 48. Kg3 {[%clk 0:00:06]}  Nf5+ {[%clk 0:00:22]} 49. Kf3 {[%clk 0:00:06]}  Rxd1 {[%clk 0:00:23]} 50. Rg2 {[%clk 0:00:06]}  Kf7 {[%clk 0:00:21]} 51. Ke2 {[%clk 0:00:06]}  Rb1 {[%clk 0:00:21]} 52. Kd3 {[%clk 0:00:06]}  Nd6 {[%clk 0:00:21]} 53. e4 {[%clk 0:00:06]}  c4+ {[%clk 0:00:21]} 54. Ke3 {[%clk 0:00:07]}  a3 {[%clk 0:00:20]} 55. bxa3 {[%clk 0:00:07]}  b3 {[%clk 0:00:21]} 56. a4 {[%clk 0:00:07]}  c3 {[%clk 0:00:21]} 0-1


[Site "https://www.chess.com"]

[Event "Titled Tuesday Blitz April 18 Early 2023"]
[White "Martinez Ramirez, Lennis"]
[Black "Jiganchine, Roman"]
[WhiteFideId "3509079"]
[BlackFideId "2603667"]
[WhiteElo "2410"]
[BlackElo "2282"]
[Result "1-0"]
[Round "02"]
[TimeControl "180+2"]
[Date "2023.04.18"]
[WhiteClock "0:00:58"]
[BlackClock "0:00:11"]

1. c4 {[%clk 0:03:00]}  c6 {[%clk 0:02:50]} 2. g3 {[%clk 0:02:59]}  d5 {[%clk 0:02:49]} 3. Bg2 {[%clk 0:03:00]}  Nf6 {[%clk 0:02:48]} 4. Nf3 {[%clk 0:03:01]}  Bf5 {[%clk 0:02:48]} 5. Qb3 {[%clk 0:02:57]}  Qb6 {[%clk 0:02:47]} 6. d4 {[%clk 0:02:54]}  e6 {[%clk 0:02:45]} 7. c5 {[%clk 0:02:54]}  Qa6 {[%clk 0:02:36]} 8. Nh4 {[%clk 0:02:46]}  Bg6 {[%clk 0:02:29]} 9. Nc3 {[%clk 0:02:42]}  b5 {[%clk 0:02:20]} 10. O-O {[%clk 0:02:37]}  Be7 {[%clk 0:02:19]} 11. Bf4 {[%clk 0:02:34]}  O-O {[%clk 0:02:12]} 12. a4 {[%clk 0:02:33]}  bxa4 {[%clk 0:01:26]} 13. Rxa4 {[%clk 0:02:34]}  Qc8 {[%clk 0:01:26]} 14. Rfa1 {[%clk 0:02:26]}  a6 {[%clk 0:01:24]} 15. Rb4 {[%clk 0:02:20]}  Nbd7 {[%clk 0:01:15]} 16. Nxg6 {[%clk 0:02:19]}  hxg6 {[%clk 0:01:14]} 17. Na4 {[%clk 0:02:12]}  Ne4 {[%clk 0:01:06]} 18. f3 {[%clk 0:02:06]}  g5 {[%clk 0:01:03]} 19. fxe4 {[%clk 0:02:02]}  gxf4 {[%clk 0:01:02]} 20. exd5 {[%clk 0:02:02]}  exd5 {[%clk 0:00:45]} 21. gxf4 {[%clk 0:02:01]}  Bf6 {[%clk 0:00:44]} 22. e4 {[%clk 0:01:45]}  dxe4 {[%clk 0:00:37]} 23. Bxe4 {[%clk 0:01:45]}  Re8 {[%clk 0:00:19]} 24. Qf3 {[%clk 0:01:22]}  Nf8 {[%clk 0:00:16]} 25. Nb6 {[%clk 0:01:15]}  Qe6 {[%clk 0:00:13]} 26. Nxa8 {[%clk 0:01:12]}  Rxa8 {[%clk 0:00:13]} 27. Bxc6 {[%clk 0:01:11]}  Ng6 {[%clk 0:00:11]} 28. Bxa8 {[%clk 0:01:01]}  Nh4 {[%clk 0:00:11]} 29. Rb8+ {[%clk 0:00:58]}  Kh7 {[%clk 0:00:11]} 30. Qh5# {[%clk 0:00:58]} 1-0


[Site "https://www.chess.com"]

[Event "Titled Tuesday Blitz April 18 Early 2023"]
[White "Prado, Alexandra"]
[Black "Dimitrov, Atanas"]
[WhiteFideId "3301346"]
[BlackFideId "2901315"]
[WhiteElo "1759"]
[BlackElo "2668"]
[Result "0-1"]
[Round "02"]
[TimeControl "180+2"]
[Date "2023.04.18"]
[WhiteClock "0:00:01"]
[BlackClock "0:02:09"]

1. e4 {[%clk 0:02:59]}  c5 {[%clk 0:03:00]} 2. Nf3 {[%clk 0:02:56]}  d6 {[%clk 0:02:57]} 3. c3 {[%clk 0:02:56]}  Nf6 {[%clk 0:02:57]} 4. Be2 {[%clk 0:02:54]}  g6 {[%clk 0:02:57]} 5. O-O {[%clk 0:02:55]}  Bg7 {[%clk 0:02:58]} 6. Re1 {[%clk 0:02:54]}  O-O {[%clk 0:02:58]} 7. Bf1 {[%clk 0:02:52]}  Nc6 {[%clk 0:02:58]} 8. Na3 {[%clk 0:02:39]}  a6 {[%clk 0:02:57]} 9. d3 {[%clk 0:02:18]}  b5 {[%clk 0:02:57]} 10. Nc2 {[%clk 0:02:18]}  Bb7 {[%clk 0:02:56]} 11. a4 {[%clk 0:02:15]}  Rc8 {[%clk 0:02:55]} 12. axb5 {[%clk 0:02:11]}  axb5 {[%clk 0:02:56]} 13. Ne3 {[%clk 0:02:09]}  e6 {[%clk 0:02:52]} 14. h3 {[%clk 0:01:38]}  b4 {[%clk 0:02:52]} 15. Bd2 {[%clk 0:01:27]}  d5 {[%clk 0:02:49]} 16. e5 {[%clk 0:01:11]}  Nd7 {[%clk 0:02:49]} 17. d4 {[%clk 0:01:11]}  bxc3 {[%clk 0:02:47]} 18. bxc3 {[%clk 0:01:07]}  Na5 {[%clk 0:02:39]} 19. Ng4 {[%clk 0:00:52]}  Nc4 {[%clk 0:02:29]} 20. Bh6 {[%clk 0:00:35]}  cxd4 {[%clk 0:02:24]} 21. cxd4 {[%clk 0:00:31]}  Bxh6 {[%clk 0:02:22]} 22. Nxh6+ {[%clk 0:00:31]}  Kg7 {[%clk 0:02:23]} 23. Ng4 {[%clk 0:00:23]}  h5 {[%clk 0:02:23]} 24. Ne3 {[%clk 0:00:20]}  Ndb6 {[%clk 0:02:24]} 25. Rc1 {[%clk 0:00:19]}  Ba6 {[%clk 0:02:21]} 26. Nxc4 {[%clk 0:00:07]}  Bxc4 {[%clk 0:02:22]} 27. Bd3 {[%clk 0:00:05]}  Bxd3 {[%clk 0:02:17]} 28. Qxd3 {[%clk 0:00:06]}  Nc4 {[%clk 0:02:18]} 29. Rc2 {[%clk 0:00:04]}  Qa5 {[%clk 0:02:17]} 30. Rec1 {[%clk 0:00:04]}  Rb8 {[%clk 0:02:15]} 31. Nd2 {[%clk 0:00:04]}  Nxd2 {[%clk 0:02:13]} 32. Qxd2 {[%clk 0:00:04]}  Qa4 {[%clk 0:02:12]} 33. Qg5 {[%clk 0:00:03]}  Qxd4 {[%clk 0:02:11]} 34. Qf6+ {[%clk 0:00:03]}  Kg8 {[%clk 0:02:12]} 35. Rc7 {[%clk 0:00:02]}  Rb2 {[%clk 0:02:12]} 36. g3 {[%clk 0:00:01]}  Re2 {[%clk 0:02:09]} 0-1


[Site "https://www.chess.com"]

[Event "Titled Tuesday Blitz April 18 Early 2023"]
[White "Ramirez Vido, Robert Yorisan"]
[Black "Demchenko, Anton"]
[WhiteFideId "3513823"]
[BlackFideId "4160258"]
[WhiteElo "2460"]
[BlackElo "2545"]
[Result "0-1"]
[Round "02"]
[TimeControl "180+2"]
[Date "2023.04.18"]
[WhiteClock "0:00:03"]
[BlackClock "0:00:18"]

1. f4 {[%clk 0:02:58]}  d5 {[%clk 0:02:58]} 2. Nf3 {[%clk 0:02:57]}  Nh6 {[%clk 0:02:59]} 3. g3 {[%clk 0:02:56]}  Bg4 {[%clk 0:02:59]} 4. Bg2 {[%clk 0:02:56]}  e6 {[%clk 0:02:58]} 5. d3 {[%clk 0:02:56]}  Bc5 {[%clk 0:02:43]} 6. c3 {[%clk 0:02:55]}  Nd7 {[%clk 0:02:36]} 7. Ne5 {[%clk 0:02:50]}  Bh5 {[%clk 0:02:17]} 8. b4 {[%clk 0:02:41]}  Bb6 {[%clk 0:02:15]} 9. a4 {[%clk 0:02:41]}  a5 {[%clk 0:02:11]} 10. b5 {[%clk 0:02:40]}  f6 {[%clk 0:01:55]} 11. Nxd7 {[%clk 0:02:15]}  Qxd7 {[%clk 0:01:56]} 12. d4 {[%clk 0:02:09]}  O-O-O {[%clk 0:01:54]} 13. Nd2 {[%clk 0:01:51]}  e5 {[%clk 0:01:52]} 14. fxe5 {[%clk 0:01:28]}  fxe5 {[%clk 0:01:53]} 15. Nf3 {[%clk 0:01:26]}  Bxf3 {[%clk 0:01:26]} 16. Bxf3 {[%clk 0:01:26]}  exd4 {[%clk 0:01:15]} 17. cxd4 {[%clk 0:01:25]}  Qh3 {[%clk 0:01:10]} 18. Bxh6 {[%clk 0:01:23]}  gxh6 {[%clk 0:00:50]} 19. e3 {[%clk 0:01:23]}  Kb8 {[%clk 0:00:50]} 20. Qd2 {[%clk 0:01:14]}  Rhf8 {[%clk 0:00:44]} 21. Qg2 {[%clk 0:01:05]}  Qe6 {[%clk 0:00:42]} 22. Kd2 {[%clk 0:00:45]}  Qd6 {[%clk 0:00:37]} 23. Kd3 {[%clk 0:00:29]}  Rde8 {[%clk 0:00:29]} 24. Bxd5 {[%clk 0:00:20]}  Rd8 {[%clk 0:00:18]} 25. Be4 {[%clk 0:00:13]}  Bxd4 {[%clk 0:00:18]} 26. exd4 {[%clk 0:00:05]}  Qxd4+ {[%clk 0:00:19]} 27. Kc2 {[%clk 0:00:03]}  Rf2+ {[%clk 0:00:18]} 0-1


[Site "https://www.chess.com"]

[Event "Titled Tuesday Blitz April 18 Early 2023"]
[White "Bacallao Alonso, Yusnel"]
[Black "Begunov, Konstantin"]
[WhiteFideId "3507416"]
[BlackFideId "4118510"]
[WhiteElo "2561"]
[BlackElo "2087"]
[Result "1-0"]
[Round "02"]
[TimeControl "180+2"]
[Date "2023.04.18"]
[WhiteClock "0:02:29"]
[BlackClock "0:00:51"]

1. d4 {[%clk 0:02:59]}  d5 {[%clk 0:02:51]} 2. c4 {[%clk 0:02:58]}  c6 {[%clk 0:02:51]} 3. cxd5 {[%clk 0:02:59]}  cxd5 {[%clk 0:02:51]} 4. Bf4 {[%clk 0:02:59]}  Nf6 {[%clk 0:02:51]} 5. e3 {[%clk 0:03:00]}  Nc6 {[%clk 0:02:52]} 6. Nc3 {[%clk 0:03:00]}  a6 {[%clk 0:02:52]} 7. Be2 {[%clk 0:03:00]}  Bf5 {[%clk 0:02:52]} 8. g4 {[%clk 0:03:00]}  Bg6 {[%clk 0:02:47]} 9. h4 {[%clk 0:03:00]}  h6 {[%clk 0:02:47]} 10. Qb3 {[%clk 0:02:59]}  Na5 {[%clk 0:02:41]} 11. Qa4+ {[%clk 0:02:58]}  Nc6 {[%clk 0:02:41]} 12. h5 {[%clk 0:02:52]}  Bh7 {[%clk 0:02:39]} 13. Nf3 {[%clk 0:02:53]}  Nxg4 {[%clk 0:01:39]} 14. Qb3 {[%clk 0:02:52]}  e6 {[%clk 0:01:39]} 15. Qxb7 {[%clk 0:02:48]}  Na5 {[%clk 0:01:37]} 16. Qc7 {[%clk 0:02:48]}  Qxc7 {[%clk 0:01:24]} 17. Bxc7 {[%clk 0:02:49]}  Nc6 {[%clk 0:01:25]} 18. a3 {[%clk 0:02:39]}  Kd7 {[%clk 0:01:23]} 19. Bf4 {[%clk 0:02:37]}  Nf6 {[%clk 0:00:57]} 20. Na4 {[%clk 0:02:31]}  Ne4 {[%clk 0:00:51]} 21. Nb6+ {[%clk 0:02:29]} 1-0


[Site "https://www.chess.com"]

[Event "Titled Tuesday Blitz April 18 Early 2023"]
[White "Matinian, Nikita"]
[Black "Real_taiatai"]
[WhiteFideId "24129100"]
[WhiteElo "2422"]
[BlackElo "2371"]
[Result "1-0"]
[Round "02"]
[TimeControl "180+2"]
[Date "2023.04.18"]
[WhiteClock "0:00:46"]
[BlackClock "0:00:15"]

1. e4 {[%clk 0:02:57]}  e6 {[%clk 0:02:54]} 2. d4 {[%clk 0:02:50]}  d5 {[%clk 0:02:55]} 3. Nc3 {[%clk 0:02:40]}  Bb4 {[%clk 0:02:54]} 4. e5 {[%clk 0:02:40]}  Ne7 {[%clk 0:02:52]} 5. Qg4 {[%clk 0:02:35]}  Kf8 {[%clk 0:02:47]} 6. h4 {[%clk 0:02:31]}  c5 {[%clk 0:02:46]} 7. dxc5 {[%clk 0:02:27]}  Bxc3+ {[%clk 0:02:46]} 8. bxc3 {[%clk 0:02:27]}  Qc7 {[%clk 0:02:47]} 9. Nf3 {[%clk 0:02:27]}  Nd7 {[%clk 0:02:39]} 10. Rh3 {[%clk 0:02:10]}  Nxe5 {[%clk 0:02:32]} 11. Nxe5 {[%clk 0:02:09]}  Qxe5+ {[%clk 0:02:31]} 12. Be2 {[%clk 0:02:10]}  h5 {[%clk 0:02:29]} 13. Qa4 {[%clk 0:02:00]}  Nc6 {[%clk 0:02:24]} 14. Bf4 {[%clk 0:01:58]}  Qf6 {[%clk 0:02:22]} 15. Bd6+ {[%clk 0:01:57]}  Kg8 {[%clk 0:02:18]} 16. Rf3 {[%clk 0:01:57]}  Qg6 {[%clk 0:02:16]} 17. Rg3 {[%clk 0:01:57]}  Qf6 {[%clk 0:02:15]} 18. Rd1 {[%clk 0:01:51]}  d4 {[%clk 0:02:04]} 19. cxd4 {[%clk 0:01:48]}  Qxh4 {[%clk 0:02:04]} 20. Rdd3 {[%clk 0:01:37]}  Qh1+ {[%clk 0:02:03]} 21. Kd2 {[%clk 0:01:37]}  e5 {[%clk 0:01:56]} 22. d5 {[%clk 0:01:33]}  Nd4 {[%clk 0:01:49]} 23. Qe8+ {[%clk 0:01:28]}  Kh7 {[%clk 0:01:48]} 24. Qxe5 {[%clk 0:01:21]}  Nf5 {[%clk 0:01:44]} 25. Rdf3 {[%clk 0:01:13]}  f6 {[%clk 0:01:35]} 26. Qe4 {[%clk 0:01:05]}  g6 {[%clk 0:01:08]} 27. Rxf5 {[%clk 0:01:05]}  Bxf5 {[%clk 0:01:09]} 28. Qe7+ {[%clk 0:01:04]}  Kg8 {[%clk 0:01:10]} 29. Qxf6 {[%clk 0:00:58]}  Rh6 {[%clk 0:00:23]} 30. Qxf5 {[%clk 0:00:52]}  Qa1 {[%clk 0:00:12]} 31. Rxg6+ {[%clk 0:00:48]}  Rxg6 {[%clk 0:00:13]} 32. Qxg6+ {[%clk 0:00:49]}  Kh8 {[%clk 0:00:14]} 33. Qxh5+ {[%clk 0:00:48]}  Kg8 {[%clk 0:00:14]} 34. Qg5+ {[%clk 0:00:46]}  Kh8 {[%clk 0:00:15]} 35. Be5+ {[%clk 0:00:46]} 1-0


[Site "https://www.chess.com"]

[Event "Titled Tuesday Blitz April 18 Early 2023"]
[White "Amilal Munkhdalai"]
[Black "Delorme, Axel"]
[WhiteFideId "4903250"]
[BlackFideId "632023"]
[WhiteElo "2293"]
[BlackElo "2478"]
[Result "0-1"]
[Round "02"]
[TimeControl "180+2"]
[Date "2023.04.18"]
[WhiteClock "0:00:36"]
[BlackClock "0:00:25"]

1. e4 {[%clk 0:03:00]}  c5 {[%clk 0:02:59]} 2. Nf3 {[%clk 0:03:01]}  d6 {[%clk 0:02:59]} 3. d4 {[%clk 0:03:01]}  cxd4 {[%clk 0:02:59]} 4. Nxd4 {[%clk 0:03:02]}  Nf6 {[%clk 0:03:00]} 5. f3 {[%clk 0:03:02]}  e5 {[%clk 0:02:59]} 6. Nb3 {[%clk 0:03:03]}  d5 {[%clk 0:03:00]} 7. Bg5 {[%clk 0:03:03]}  d4 {[%clk 0:03:00]} 8. c3 {[%clk 0:03:02]}  Nc6 {[%clk 0:02:59]} 9. Bb5 {[%clk 0:03:02]}  h6 {[%clk 0:02:58]} 10. Bd2 {[%clk 0:03:00]}  Be6 {[%clk 0:02:51]} 11. Bxc6+ {[%clk 0:02:58]}  bxc6 {[%clk 0:02:50]} 12. cxd4 {[%clk 0:02:58]}  exd4 {[%clk 0:02:50]} 13. O-O {[%clk 0:02:55]}  c5 {[%clk 0:02:45]} 14. Na3 {[%clk 0:02:52]}  c4 {[%clk 0:02:36]} 15. Ba5 {[%clk 0:02:40]}  Qd7 {[%clk 0:02:12]} 16. Nxd4 {[%clk 0:02:39]}  Bc5 {[%clk 0:02:10]} 17. Bc3 {[%clk 0:02:36]}  Rd8 {[%clk 0:02:07]} 18. Nc2 {[%clk 0:02:35]}  O-O {[%clk 0:02:02]} 19. Kh1 {[%clk 0:02:35]}  Nh5 {[%clk 0:01:29]} 20. Qd2 {[%clk 0:02:23]}  Qc7 {[%clk 0:01:20]} 21. g3 {[%clk 0:02:18]}  Bh3 {[%clk 0:01:11]} 22. Rfd1 {[%clk 0:02:11]}  Rd6 {[%clk 0:01:00]} 23. Qe1 {[%clk 0:02:03]}  Rg6 {[%clk 0:00:58]} 24. Ne2 {[%clk 0:01:34]}  f5 {[%clk 0:00:54]} 25. e5 {[%clk 0:01:12]}  Qb7 {[%clk 0:00:38]} 26. Ned4 {[%clk 0:00:43]}  f4 {[%clk 0:00:38]} 27. Qe2 {[%clk 0:00:44]}  fxg3 {[%clk 0:00:38]} 28. Qxc4+ {[%clk 0:00:44]}  Kh7 {[%clk 0:00:37]} 29. Qxc5 {[%clk 0:00:44]}  Rxf3 {[%clk 0:00:26]} 30. Nc6 {[%clk 0:00:36]}  g2+ {[%clk 0:00:24]} 31. Kg1 {[%clk 0:00:36]}  Rf1+ {[%clk 0:00:25]} 0-1


[Site "https://www.chess.com"]

[Event "Titled Tuesday Blitz April 18 Early 2023"]
[White "HSH1987"]
[Black "Smiechu"]
[WhiteElo "2691"]
[BlackElo "2348"]
[Result "1-0"]
[Round "02"]
[TimeControl "180+2"]
[Date "2023.04.18"]
[WhiteClock "0:01:14"]
[BlackClock "0:00:57"]

1. Nf3 {[%clk 0:03:00]}  Nf6 {[%clk 0:02:56]} 2. g3 {[%clk 0:03:01]}  c5 {[%clk 0:02:56]} 3. Bg2 {[%clk 0:03:01]}  Nc6 {[%clk 0:02:56]} 4. O-O {[%clk 0:03:02]}  g6 {[%clk 0:02:56]} 5. b3 {[%clk 0:03:02]}  Bg7 {[%clk 0:02:57]} 6. Bb2 {[%clk 0:03:03]}  O-O {[%clk 0:02:57]} 7. c4 {[%clk 0:03:03]}  d6 {[%clk 0:02:57]} 8. d4 {[%clk 0:03:03]}  cxd4 {[%clk 0:02:57]} 9. Nxd4 {[%clk 0:03:04]}  Bd7 {[%clk 0:02:57]} 10. Nc3 {[%clk 0:03:03]}  Nxd4 {[%clk 0:02:56]} 11. Qxd4 {[%clk 0:03:04]}  Bc6 {[%clk 0:02:57]} 12. Rac1 {[%clk 0:02:49]}  Ne4 {[%clk 0:02:50]} 13. Qd3 {[%clk 0:02:49]}  Nxc3 {[%clk 0:02:50]} 14. Bxc3 {[%clk 0:02:50]}  Bxc3 {[%clk 0:02:49]} 15. Qxc3 {[%clk 0:02:46]}  Bxg2 {[%clk 0:02:47]} 16. Kxg2 {[%clk 0:02:47]}  Rc8 {[%clk 0:02:47]} 17. Rfd1 {[%clk 0:02:46]}  Qc7 {[%clk 0:02:45]} 18. Qf3 {[%clk 0:02:43]}  Qc6 {[%clk 0:02:44]} 19. a4 {[%clk 0:02:29]}  Rfd8 {[%clk 0:02:39]} 20. e4 {[%clk 0:02:19]}  a5 {[%clk 0:02:36]} 21. h4 {[%clk 0:02:18]}  h5 {[%clk 0:02:27]} 22. Rd5 {[%clk 0:02:17]}  Qd7 {[%clk 0:02:18]} 23. Rxa5 {[%clk 0:02:12]}  Rc5 {[%clk 0:02:15]} 24. Rb5 {[%clk 0:02:06]}  Rdc8 {[%clk 0:02:08]} 25. Rd1 {[%clk 0:02:02]}  Rxb5 {[%clk 0:02:07]} 26. axb5 {[%clk 0:02:03]}  Ra8 {[%clk 0:02:02]} 27. e5 {[%clk 0:02:01]}  Qc7 {[%clk 0:01:58]} 28. exd6 {[%clk 0:01:59]}  exd6 {[%clk 0:01:59]} 29. Qd5 {[%clk 0:01:59]}  Ra3 {[%clk 0:01:50]} 30. Rd3 {[%clk 0:01:55]}  Qc5 {[%clk 0:01:41]} 31. Qxb7 {[%clk 0:01:39]}  Ra2 {[%clk 0:01:41]} 32. Rf3 {[%clk 0:01:38]}  Ra7 {[%clk 0:01:37]} 33. Qe4 {[%clk 0:01:30]}  Qc8 {[%clk 0:01:27]} 34. Qd4 {[%clk 0:01:27]}  Rd7 {[%clk 0:01:26]} 35. Qd5 {[%clk 0:01:26]}  Qc7 {[%clk 0:01:23]} 36. Rd3 {[%clk 0:01:26]}  Kg7 {[%clk 0:00:58]} 37. c5 {[%clk 0:01:25]}  Kg8 {[%clk 0:00:58]} 38. cxd6 {[%clk 0:01:19]}  Qb6 {[%clk 0:00:58]} 39. Qc6 {[%clk 0:01:14]}  Qd8 {[%clk 0:00:57]} 40. b6 {[%clk 0:01:14]} 1-0


[Site "https://www.chess.com"]

[Event "Titled Tuesday Blitz April 18 Early 2023"]
[White "Marcziter, Dmitrii"]
[Black "Bernabeu Lopez, Carlos Javier"]
[WhiteFideId "13900765"]
[BlackFideId "2235366"]
[WhiteElo "2162"]
[BlackElo "2344"]
[Result "0-1"]
[Round "02"]
[TimeControl "180+2"]
[Date "2023.04.18"]
[WhiteClock "0:01:11"]
[BlackClock "0:02:54"]

1. e4 {[%clk 0:03:00]}  e5 {[%clk 0:02:58]} 2. Nf3 {[%clk 0:02:59]}  Nf6 {[%clk 0:02:57]} 3. Nxe5 {[%clk 0:02:58]}  Nxe4 {[%clk 0:02:57]} 4. Nf3 {[%clk 0:02:47]}  d5 {[%clk 0:02:56]} 5. Nc3 {[%clk 0:02:46]}  Nxc3 {[%clk 0:02:56]} 6. dxc3 {[%clk 0:02:45]}  c6 {[%clk 0:02:57]} 7. Be3 {[%clk 0:02:45]}  Bg4 {[%clk 0:02:56]} 8. Qd2 {[%clk 0:02:44]}  Qa5 {[%clk 0:02:56]} 9. Bd3 {[%clk 0:02:37]}  Nd7 {[%clk 0:02:57]} 10. h3 {[%clk 0:02:32]}  Bxf3 {[%clk 0:02:56]} 11. gxf3 {[%clk 0:02:32]}  O-O-O {[%clk 0:02:56]} 12. Bf5 {[%clk 0:02:26]}  Bc5 {[%clk 0:02:53]} 13. a3 {[%clk 0:02:17]}  Bxe3 {[%clk 0:02:53]} 14. fxe3 {[%clk 0:02:17]}  Qb6 {[%clk 0:02:53]} 15. O-O-O {[%clk 0:02:16]}  Rhe8 {[%clk 0:02:53]} 16. Rhe1 {[%clk 0:02:15]}  g6 {[%clk 0:02:53]} 17. Bd3 {[%clk 0:02:13]}  Nc5 {[%clk 0:02:50]} 18. Bf1 {[%clk 0:02:09]}  f5 {[%clk 0:02:50]} 19. Kb1 {[%clk 0:02:08]}  Re7 {[%clk 0:02:50]} 20. b3 {[%clk 0:02:06]}  Rde8 {[%clk 0:02:50]} 21. Qd4 {[%clk 0:01:56]}  Nd7 {[%clk 0:02:50]} 22. Rd3 {[%clk 0:01:51]}  Ne5 {[%clk 0:02:44]} 23. Qxb6 {[%clk 0:01:41]}  axb6 {[%clk 0:02:45]} 24. Rd4 {[%clk 0:01:36]}  Nxf3 {[%clk 0:02:45]} 25. Red1 {[%clk 0:01:35]}  Nxd4 {[%clk 0:02:45]} 26. exd4 {[%clk 0:01:36]}  Re1 {[%clk 0:02:46]} 27. Kc1 {[%clk 0:01:35]}  Rxd1+ {[%clk 0:02:46]} 28. Kxd1 {[%clk 0:01:35]}  Re3 {[%clk 0:02:47]} 29. Kd2 {[%clk 0:01:32]}  Rf3 {[%clk 0:02:48]} 30. Be2 {[%clk 0:01:28]}  Rxh3 {[%clk 0:02:48]} 31. a4 {[%clk 0:01:28]}  Kc7 {[%clk 0:02:48]} 32. c4 {[%clk 0:01:28]}  h5 {[%clk 0:02:48]} 33. c5 {[%clk 0:01:21]}  Rg3 {[%clk 0:02:48]} 34. b4 {[%clk 0:01:17]}  h4 {[%clk 0:02:48]} 35. b5 {[%clk 0:01:16]}  bxc5 {[%clk 0:02:48]} 36. dxc5 {[%clk 0:01:15]}  cxb5 {[%clk 0:02:49]} 37. axb5 {[%clk 0:01:15]}  h3 {[%clk 0:02:50]} 38. c4 {[%clk 0:01:10]}  dxc4 {[%clk 0:02:50]} 39. Bxc4 {[%clk 0:01:11]}  h2 {[%clk 0:02:51]} 40. Bd5 {[%clk 0:01:11]}  Rg1 {[%clk 0:02:51]} 41. b6+ {[%clk 0:01:11]}  Kb8 {[%clk 0:02:51]} 42. c6 {[%clk 0:01:11]}  bxc6 {[%clk 0:02:52]} 43. Bxc6 {[%clk 0:01:11]}  h1=Q {[%clk 0:02:53]} 44. Bxh1 {[%clk 0:01:11]}  Rxh1 {[%clk 0:02:54]} 0-1


[Site "https://www.chess.com"]